bitfinex-derivatives/quotes_ETHF0:USTF0_20241017
["timestamp","ask_amount","ask_price","bid_price","bid_amount"]
[1729181596150,4.16274,2618.1,2617.2,3.6015]
[1729181596355,0.38203,2617.7,2617.6,0.38204]
[1729181596542,0.38207,2617.4,2617.3,0.38208]
[1729181596743,0.38207,2617.4,2617.2,3.6015]
[1729181596744,0.38208,2617.4,2617.2,0.3937]
[1729181596950,0.38208,2617.4,2617.2,0.77579]
[1729181597143,3.2078,2617.8,2617.2,0.3937]
[1729181597343,0.38207,2617.5,2617.3,0.38209]
[1729181597552,3.2078,2617.8,2617.2,0.3937]
[1729181597751,3.2078,2617.8,2617.7,0.38203]
[1729181599461,0.38197,2618.2,2617.9,0.38199]
[1729181599748,3.2078,2618.3,2618.0,0.4269]
[1729181600051,0.38197,2618.1,2618.0,0.4269]
[1729181600548,4.20197,2618.1,2618.0,0.4269]
[1729181600743,0.38199,2618.0,2617.7,0.38202]
[1729181600947,0.38199,2618.0,2617.7,0.80892]
[1729181601350,4.8488,2618.3,2617.8,0.38201]
[1729181601660,4.8488,2618.3,2617.7,0.4269]
[1729181601847,5.23075,2618.3,2618.1,0.38197]
[1729181602048,3.2078,2618.3,2618.2,0.78196]
[1729181602953,3.2078,2618.6,2618.5,0.38191]
[1729181603145,4.8448,2619.3,2618.4,4.16262]
[1729181603343,1.637,2619.2,2618.8,0.38186]
[1729181603659,0.38183,2619.1,2618.9,0.78185]
[1729181603953,0.38184,2619.0,2618.9,0.4]
[1729181604253,0.38184,2619.1,2618.9,0.78185]
[1729181604554,0.38184,2619.1,2619.0,0.38184]
[1729181604555,0.38183,2619.1,2619.0,0.38184]
[1729181604750,0.38184,2619.0,2618.9,0.78185]
[1729181605158,4.8448,2619.3,2618.9,0.4]
[1729181605755,0.38182,2619.2,2619.0,0.38184]
[1729181605952,0.38182,2619.2,2618.9,0.4]
[1729181606160,3.2078,2619.3,2618.9,0.4]
[1729181606458,3.2078,2619.3,2619.2,0.38181]
[1729181606748,0.23660767,2619.7,2619.0,3.5997]
[1729181606749,3.82615767,2619.7,2619.0,3.5997]
[1729181606949,0.38176,2619.6,2619.0,0.3919]
[1729181607156,0.38177,2619.5,2619.4,0.38177]
[1729181607553,44.0078,2619.7,2619.0,1.34648]
[1729181607759,44.0078,2619.7,2619.3,0.38179]
[1729181607760,0.38178,2619.5,2619.3,0.38179]
[1729181608051,0.3818,2619.3,2619.1,0.38182]
[1729181608258,0.3818,2619.3,2619.0,0.3919]
[1729181608259,44.96216,2619.7,2619.0,0.77373]
[1729181608559,0.38182,2619.1,2619.0,0.77374]
[1729181608953,3.2078,2619.4,2619.0,0.77374]
[1729181609152,0.3818,2619.3,2619.1,0.38181]
[1729181609453,3.2078,2619.4,2619.0,0.77373]
[1729181609655,0.38181,2619.2,2619.1,0.38182]
[1729181610046,3.2078,2619.4,2619.0,0.3919]
[1729181610455,0.38181,2619.3,2619.1,0.38181]
[1729181610655,3.58959,2619.4,2619.2,0.3818]
[1729181610959,3.2078,2619.4,2619.0,0.3919]
[1729181611150,3.2078,2619.4,2619.1,0.38182]
[1729181611151,0.38182,2619.2,2619.1,0.38182]
[1729181611347,3.2078,2619.4,2618.9,0.4]
[1729181611849,0.38184,2619.0,2618.9,0.4]
[1729181615356,0.38184,2619.0,2618.6,0.3853]
[1729181615357,9.8184,2619.0,2618.6,0.3853]
[1729181615547,9.8184,2619.0,2618.6,0.7715]
[1729181615548,0.38188,2618.7,2618.6,0.7715]
[1729181615944,4.20028,2618.7,2618.6,0.7715]
[1729181616855,4.20028,2618.7,2618.6,0.3862]
[1729181617456,4.16237,2619.1,2618.6,0.3862]
[1729181617653,0.38186,2618.9,2618.6,0.3862]
[1729181617960,3.58963,2619.1,2619.0,0.38184]
[1729181618150,3.58963,2619.1,2618.6,1.34093]
[1729181618151,3.58964,2619.1,2618.6,1.34093]
[1729181618453,0.38184,2619.0,2618.9,0.38184]
[1729181618657,0.38185,2619.0,2618.9,0.38185]
[1729181619156,0.38186,2618.9,2618.8,0.38186]
[1729181619554,0.38185,2618.9,2618.8,0.38186]
[1729181621160,3.2078,2619.1,2618.6,0.3862]
[1729181621372,0.38186,2618.9,2618.8,0.38186]
[1729181621865,3.2078,2619.1,2618.6,0.3862]
[1729181622056,3.2078,2619.1,2619.0,0.38184]
[1729181623162,3.2078,2619.1,2619.0,0.80754]
[1729181623759,0.38182,2619.2,2619.1,0.38182]
[1729181624072,6.03077273,2619.5,2618.9,0.4152]
[1729181624365,0.38183,2619.1,2619.0,0.80753]
[1729181625261,0.38193,2618.4,2618.3,0.38194]
[1729181625461,0.38192,2618.5,2618.3,1.18903]
[1729181625661,3.2078,2618.7,2618.3,1.18903]
[1729181625851,3.2078,2618.7,2618.3,0.4134]
[1729181625852,0.38193,2618.4,2618.3,0.4134]
[1729181626665,40.8,2618.6,2618.0,0.3937]
[1729181626666,42.437,2618.6,2618.0,0.3937]
[1729181626853,0.382,2617.9,2617.8,0.3914]
[1729181627059,3.2078,2618.1,2617.8,0.3914]
[1729181627262,0.38199,2618.0,2617.5,0.3937]
[1729181627465,3.2078,2618.1,2617.5,0.3937]
[1729181627672,0.38201,2617.9,2617.7,0.38202]
[1729181627959,3.2078,2618.1,2617.5,0.3937]
[1729181628264,0.38201,2617.9,2617.7,0.38202]
[1729181628565,0.38201,2617.9,2617.8,0.3982]
[1729181628954,3.2078,2618.1,2617.8,0.3982]
[1729181629160,0.38199,2618.0,2617.8,0.7802]
[1729181629354,0.382,2617.9,2617.8,0.3982]
[1729181629559,0.38199,2618.0,2617.8,0.3982]
[1729181629764,3.2078,2618.1,2617.8,0.3982]
[1729181630161,3.2078,2618.1,2617.8,0.78021]
[1729181630361,0.382,2617.9,2617.8,0.78021]
[1729181630559,0.382,2618.0,2617.8,0.78021]
[1729181630763,0.382,2618.0,2617.9,0.382]
[1729181631059,0.382,2618.0,2617.8,0.3982]
[1729181631060,0.38199,2618.0,2617.8,0.3982]
[1729181631363,3.2078,2618.1,2618.0,0.38199]
[1729181631956,3.58972,2618.5,2618.3,0.38193]
[1729181632160,3.58971,2618.5,2618.4,0.3918]
[1729181632564,3.2078,2618.5,2618.4,0.77373]
[1729181633059,0.95463,2619.0,2618.4,0.3918]
[1729181633255,0.95463,2619.0,2618.6,0.38189]
[1729181633256,0.38188,2618.8,2618.6,0.38189]
[1729181633457,0.38185,2618.9,2618.4,3.5996]
[1729181633655,0.38191,2618.5,2618.4,0.3918]
[1729181634769,0.38191,2618.5,2618.4,0.77373]
[1729181635159,0.38191,2618.5,2618.4,0.3918]
[1729181635868,0.38191,2618.5,2618.4,0.77373]
[1729181636261,43.80262,2619.0,2618.5,0.38191]
[1729181636565,0.38189,2618.7,2618.5,0.3819]
[1729181636770,0.38189,2618.7,2618.6,0.4103]
[1729181636964,0.38189,2618.7,2618.6,0.7922]
[1729181637765,0.38189,2618.7,2618.6,0.4103]
[1729181638266,0.38189,2618.7,2618.6,0.7922]
[1729181638569,0.38189,2618.7,2618.6,0.4103]
[1729181640472,3.2078,2618.8,2618.4,3.5996]
[1729181640781,0.38191,2618.5,2618.4,3.5996]
[1729181640979,4.35062444,2618.8,2618.0,0.98741016]
[1729181641274,0.38192,2618.5,2618.4,0.38192]
[1729181642179,0.38192,2618.5,2618.4,0.38193]
[1729181642869,3.2078,2618.8,2618.1,1.78871016]
[1729181643172,0.3819,2618.7,2618.3,0.38194]
[1729181643478,3.58968,2618.8,2618.7,0.38188]
[1729181644073,0.38191,2618.6,2618.5,0.38191]
[1729181644272,2.82254492,2619.1,2618.4,0.38192]
[1729181644273,0.38191,2618.5,2618.4,0.38192]
[1729181644573,0.38191,2618.6,2618.5,0.38191]
[1729181644772,7.02192401,2619.1,2618.2,0.98741016]
[1729181644975,0.38193,2618.4,2618.3,0.38194]
[1729181645174,0.38193,2618.4,2618.1,1.78871016]
[1729181645175,0.95471,2618.7,2618.1,1.78871016]
[1729181645373,4.16251,2618.8,2618.1,1.78871016]
[1729181645575,0.38192,2618.5,2618.2,0.98741016]
[1729181645770,4.16251,2618.8,2618.3,0.38193]
[1729181645972,0.38193,2618.4,2618.3,0.38193]
[1729181646482,0.38192,2618.5,2618.4,0.38192]
[1729181646780,0.38191,2618.6,2618.5,0.38191]
[1729181646973,4.16251,2618.8,2618.2,0.98741016]
[1729181647175,0.38193,2618.4,2618.3,0.38193]
[1729181647878,0.38194,2618.3,2618.2,0.38195]
[1729181648181,0.95476,2618.6,2618.1,0.8013]
[1729181648182,0.38196,2618.2,2618.1,0.8013]
[1729181648372,0.38196,2618.2,2618.1,0.4075]
[1729181649171,0.38196,2618.2,2618.1,0.78947]
[1729181649568,0.38195,2618.3,2618.2,0.38194]
[1729181650087,3.2078,2618.5,2618.3,0.38193]
[1729181650088,0.38194,2618.4,2618.3,0.38193]
[1729181651275,3.58972,2618.5,2618.4,0.38193]
[1729181651476,3.2078,2618.5,2618.4,0.38193]
[1729181651777,3.58972,2618.5,2618.4,0.38193]
[1729181653180,0.38192,2618.5,2618.4,0.38193]
[1729181653781,0.38191,2618.6,2618.5,0.38191]
[1729181655092,3.2078,2618.7,2618.3,0.4059]
[1729181655391,0.38192,2618.5,2618.4,0.38191]
[1729181656575,3.2078,2618.7,2618.3,1.39331016]
[1729181656780,0.38191,2618.6,2618.5,0.38191]
[1729181657884,3.58968,2618.7,2618.6,0.3819]
[1729181658383,0.38188,2618.7,2618.6,0.3819]
[1729181658981,0.38188,2618.7,2618.6,0.7917]
[1729181659887,3.2078,2618.8,2618.4,0.98741016]
[1729181660089,0.95473,2618.7,2618.3,1.18163]
[1729181660385,0.38193,2618.4,2618.3,1.18163]
[1729181660891,0.38193,2618.4,2618.3,0.7997]
[1729181661090,0.38193,2618.4,2618.3,1.18164]
[1729181661392,44.99937909,2618.8,2618.3,1.78711016]
[1729181661596,0.38192,2618.5,2618.4,0.38191]
[1729181662391,45.95406909,2618.8,2618.3,0.98741016]
[1729181662392,44.0078,2618.8,2618.3,0.98741016]
[1729181662590,0.38194,2618.3,2618.2,1.77006016]
[1729181662897,0.38194,2618.3,2618.2,2.91486693]
[1729181663193,0.38194,2618.3,2618.2,1.77006016]
[1729181663490,0.38194,2618.3,2618.2,1.38811016]
[1729181663789,0.38194,2618.3,2618.2,0.4007]
[1729181664089,0.9548,2618.5,2618.1,1.38141016]
[1729181664090,0.38196,2618.2,2618.1,0.98741016]
[1729181664285,0.38197,2618.1,2618.0,0.4007]
[1729181665982,3.2078,2618.2,2618.0,0.4007]
[1729181666186,0.38194,2618.3,2618.2,0.38195]
[1729181666378,0.99157909,2618.6,2618.1,0.98741016]
[1729181666579,0.38194,2618.4,2618.3,0.38193]
[1729181667390,0.2314258,2618.6,2618.2,1.37961016]
[1729181667587,0.38194,2618.3,2618.2,1.76155016]
[1729181667790,0.38194,2618.3,2618.2,1.37961016]
[1729181667991,1.94632909,2618.6,2618.2,0.3922]
[1729181668191,0.38194,2618.4,2618.3,0.38194]
[1729181668591,0.38192,2618.5,2618.4,0.38192]
[1729181668793,6.0612453,2618.7,2618.3,0.98741016]
[1729181668996,0.38193,2618.4,2618.3,1.36934016]
[1729181669199,0.38192,2618.5,2618.4,0.38192]
[1729181669794,0.38193,2618.4,2618.3,1.36934016]
[1729181669992,4.4292453,2618.7,2618.3,2.14406389]
[1729181670296,0.3819,2618.6,2618.5,0.3819]
[1729181670494,0.3819,2618.6,2618.5,0.4061]
[1729181670888,1.37347909,2618.6,2618.5,0.4061]
[1729181671195,0.3819,2618.6,2618.5,0.4061]
[1729181674296,1.37347909,2618.6,2618.5,0.4061]
[1729181676300,1.87632746,2618.6,2618.5,0.4061]
[1729181677997,1.38357175,2618.6,2618.5,0.78801]
[1729181678298,4.59136175,2618.7,2618.6,0.3819]
[1729181678595,4.59136175,2618.7,2618.6,1.37950773]
[1729181678796,3.58969,2618.7,2618.6,1.53997502]
[1729181679004,3.58969,2618.7,2618.6,3.02673679]
[1729181681793,0.38189,2618.7,2618.6,3.02673679]
[1729181681994,0.38189,2618.7,2618.6,3.45453679]
[1729181682293,0.38189,2618.7,2618.6,1.58585358]
[1729181682601,0.38189,2618.7,2618.6,3.07263679]
[1729181683004,0.38189,2618.7,2618.6,1.58585358]
[1729181683201,0.38189,2618.7,2618.6,3.45453679]
[1729181683403,0.38189,2618.7,2618.6,3.07263679]
[1729181683605,0.38189,2618.7,2618.6,3.07256426]
[1729181683799,0.38189,2618.7,2618.6,3.45446426]
[1729181684009,1.38355175,2618.8,2618.7,0.38188]
[1729181684197,0.38188,2618.8,2618.7,2.53692349]
[1729181684399,0.38188,2618.8,2618.7,2.15502491]
[1729181684596,2.44904746,2619.0,2618.7,2.15502491]
[1729181684597,1.00167175,2619.0,2618.8,0.38187]
[1729181684799,1.00167175,2619.3,2618.9,9.25948307]
[1729181684993,4.20947175,2619.4,2619.2,0.99669368]
[1729181685200,4.20947175,2619.4,2619.3,0.99669145]
[1729181685400,0.3818,2619.3,2619.2,1.49501867]
[1729181685598,3.2078,2619.4,2619.3,0.3818]
[1729181685908,3.2078,2619.4,2619.3,2.65141387]
[1729181686198,3.58958,2619.4,2619.3,1.1563952]
[1729181686399,3.58958,2619.4,2619.3,0.99607605]
[1729181686600,3.58958,2619.4,2619.2,1.49501867]
[1729181686601,0.3818,2619.3,2619.2,0.99607605]
[1729181687397,3.2078,2619.4,2619.2,2.15208556]
[1729181687604,0.3818,2619.3,2619.2,0.99607605]
[1729181688507,0.3818,2619.3,2619.1,1.37789605]
[1729181688802,0.38181,2619.2,2619.1,0.99607605]
[1729181690105,0.38181,2619.2,2619.1,1.37789605]
[1729181690909,3.2078,2619.4,2619.2,0.3818]
[1729181690910,0.38181,2619.3,2619.2,0.3818]
[1729181691112,0.38181,2619.2,2619.1,1.37788605]
[1729181691500,0.38181,2619.2,2619.1,0.38181]
[1729181691812,0.38181,2619.3,2619.2,0.3818]
[1729181692311,3.2078,2619.4,2619.3,0.3818]
[1729181692312,3.58959,2619.4,2619.3,0.3818]
[1729181692504,3.2078,2619.4,2619.3,0.3818]
[1729181692699,3.58958,2619.4,2619.3,0.3818]
[1729181693104,3.2078,2619.4,2619.3,0.3818]
[1729181694109,3.58953,2619.8,2619.2,4.20387605]
[1729181694313,3.2078,2619.8,2619.7,0.38174]
[1729181695705,3.2078,2620.4,2619.7,9.8168]
[1729181696008,0.38166,2620.3,2620.2,0.38166]
[1729181696211,0.38166,2620.3,2619.9,0.95428]
[1729181696410,4.43794476,2620.7,2620.0,1.38083]
[1729181696614,0.38162,2620.5,2620.4,0.38163]
[1729181696913,0.38162,2620.5,2620.0,1.38083]
[1729181696914,0.38163,2620.5,2620.0,1.38083]
[1729181697115,3.2078,2620.7,2620.4,0.38163]
[1729181697417,0.38162,2620.5,2620.0,1.38083]
[1729181697720,3.2078,2620.7,2620.0,1.38083]
[1729181697909,0.38161,2620.6,2620.4,0.38163]
[1729181698108,3.5894,2620.7,2620.2,0.95416]
[1729181698412,3.5894,2620.7,2620.5,0.38161]
[1729181698413,3.2078,2620.7,2620.5,0.38161]
[1729181698612,3.2078,2620.7,2620.1,0.95418]
[1729181698613,0.3816,2620.7,2620.2,4.16196]
[1729181698908,0.3816,2620.7,2620.6,0.38161]
[1729181699126,0.7996,2620.9,2620.6,0.38161]
[1729181699127,0.38159,2620.8,2620.6,0.38161]
[1729181699310,0.7996,2620.9,2620.6,0.38161]
[1729181699511,0.38159,2620.7,2620.6,0.38161]
[1729181699725,44.0078,2621.1,2620.5,3.2078]
[1729181699924,0.38159,2620.7,2620.6,0.8091]
[1729181700217,0.38159,2620.7,2620.6,0.80911]
[1729181700412,0.38158,2620.8,2620.7,0.38159]
[1729181700716,0.38159,2620.7,2620.6,0.4275]
[1729181701312,0.38159,2620.7,2620.5,0.38162]
[1729181701313,44.24492981,2621.1,2620.2,3.5996]
[1729181701520,0.38165,2620.3,2620.2,3.98126]
[1729181701715,0.4166,2620.9,2620.3,0.38165]
[1729181701716,0.38163,2620.5,2620.3,0.38165]
[1729181702214,0.3897,2620.8,2620.3,0.77475]
[1729181702215,0.38164,2620.4,2620.3,0.77475]
[1729181702419,1.34366,2620.8,2620.3,0.77475]
[1729181702616,0.38164,2620.4,2620.3,0.77475]
[1729181702813,0.38164,2620.4,2620.3,0.77474]
[1729181703217,1.34366,2620.8,2620.3,0.3931]
[1729181703418,0.38161,2620.6,2620.5,0.38161]
[1729181703617,45.19878981,2621.1,2620.3,0.3931]
[1729181703618,44.0078,2621.1,2620.3,0.3931]
[1729181703807,0.38157,2620.9,2620.8,0.38157]
[1729181704117,0.38159,2620.8,2620.7,0.38158]
[1729181705219,40.8,2621.1,2620.6,0.4198]
[1729181705410,0.38159,2620.8,2620.7,0.78858]
[1729181706014,0.38158,2620.8,2620.7,0.78858]
[1729181706721,0.38158,2620.8,2620.7,0.407]
[1729181707918,0.38158,2620.8,2620.7,0.78859]
[1729181708120,0.38158,2620.8,2620.7,0.407]
[1729181709014,0.38158,2620.8,2620.7,0.78859]
[1729181709210,41.75385,2621.1,2620.7,0.407]
[1729181709417,0.38158,2620.9,2620.8,0.38157]
[1729181709610,0.38158,2620.9,2620.8,0.3886]
[1729181710215,0.38158,2620.9,2620.8,0.77018]
[1729181710424,0.38158,2620.9,2620.8,0.3886]
[1729181711529,0.38161,2620.6,2620.5,3.2078]
[1729181712216,0.38162,2620.5,2620.4,0.77923]
[1729181713020,0.4096,2620.7,2620.4,0.3976]
[1729181713213,40.8,2621.1,2620.4,0.3976]
[1729181713421,9.64,2622.0,2620.8,0.38157]
[1729181713422,0.38156,2620.9,2620.8,0.38157]
[1729181713923,0.38162,2620.5,2620.4,0.3976]
[1729181714134,0.38162,2620.5,2619.9,3.2078]
[1729181714135,0.95405,2620.6,2619.9,3.5895]
[1729181714327,0.38167,2620.2,2620.1,0.38167]
[1729181714624,4.58215,2620.6,2619.9,3.6015]
[1729181714625,0.95406,2620.5,2619.9,3.6015]
[1729181714825,3.6281,2620.6,2619.9,3.6015]
[1729181715020,3.6281,2620.6,2620.2,0.38166]
[1729181715021,0.38166,2620.3,2620.2,0.38166]
[1729181715219,4.58214,2620.6,2619.9,3.6015]
[1729181715220,3.6281,2620.6,2619.9,3.6015]
[1729181715527,0.38168,2620.2,2620.1,0.38167]
[1729181716519,3.6281,2620.6,2620.0,0.8325]
[1729181716726,3.6281,2620.6,2620.2,3.2078]
[1729181716727,3.2078,2620.6,2620.2,3.2078]
[1729181716920,0.38165,2620.3,2620.2,3.58944]
[1729181717517,0.38168,2620.1,2620.0,1.21419]
[1729181719418,0.38168,2620.1,2620.0,0.8325]
[1729181719824,0.38168,2620.1,2620.0,1.21419]
[1729181720523,0.38168,2620.1,2620.0,0.8325]
[1729181720727,0.38178,2619.4,2619.3,0.47078]
[1729181720924,0.3818,2619.3,2619.2,0.8073]
[1729181721123,0.95443,2619.5,2619.0,3.2078]
[1729181721322,0.38185,2618.9,2618.8,3.2078]
[1729181721638,0.95456,2619.2,2618.7,3.2078]
[1729181721823,0.38188,2618.7,2618.6,0.7911]
[1729181722019,0.38188,2618.8,2618.7,0.38188]
[1729181722222,1.79046,2619.2,2618.3,4.0086]
[1729181722429,3.2078,2619.0,2618.5,0.3819]
[1729181722627,0.3819,2618.6,2618.5,0.3819]
[1729181723527,2.02460396,2619.2,2618.6,0.38189]
[1729181723824,0.38188,2618.8,2618.6,0.38189]
[1729181724332,0.38192,2618.5,2618.4,0.38192]
[1729181726031,0.38192,2618.5,2618.4,3.58972]
[1729181726236,4.16242,2619.0,2618.4,3.2078]
[1729181726531,4.141,2619.8,2618.3,0.4027]
[1729181726532,4.141,2619.8,2618.5,7.0262]
[1729181726732,0.95439,2619.6,2618.8,3.2078]
[1729181726934,0.95439,2619.6,2618.3,1.48777605]
[1729181726935,0.38185,2619.0,2618.9,1.18825]
[1729181727138,0.38183,2619.1,2619.0,0.38183]
[1729181727326,0.95439,2619.6,2618.9,0.8064]
[1729181727327,0.38184,2619.0,2618.9,1.18825]
[1729181728034,0.38184,2619.0,2618.9,0.8064]
[1729181728234,0.38184,2619.0,2618.9,1.18825]
[1729181728441,0.38184,2619.0,2618.9,0.8064]
[1729181728639,0.38184,2619.0,2618.9,1.18825]
[1729181729144,0.38184,2619.0,2618.9,0.8064]
[1729181729431,0.38184,2619.0,2618.9,1.18825]
[1729181729834,0.38184,2619.0,2618.9,0.8064]
[1729181730035,0.38184,2619.0,2618.9,1.18825]
[1729181730534,0.38184,2619.1,2619.0,0.38183]
[1729181730744,0.38184,2619.0,2618.9,0.8064]
[1729181730932,0.38184,2619.0,2618.9,1.18825]
[1729181731131,0.38184,2619.0,2618.9,0.8064]
[1729181731737,0.38184,2619.0,2618.9,1.18825]
[1729181732637,0.38187,2618.8,2618.7,0.38187]
[1729181733037,0.38187,2618.8,2618.7,4.20027]
[1729181733236,0.38187,2618.8,2618.7,0.38187]
[1729181733436,0.4173,2619.3,2618.5,0.8181]
[1729181733639,0.3819,2618.6,2618.5,0.8181]
[1729181733832,0.3819,2618.6,2618.5,0.4137]
[1729181736930,0.8025,2618.8,2618.5,0.4137]
[1729181737135,0.38188,2618.8,2618.6,0.38189]
[1729181737331,3.2078,2619.0,2618.6,0.38189]
[1729181737547,0.38185,2618.9,2618.5,0.79561]
[1729181737744,4.16242,2619.0,2618.6,0.38189]
[1729181738039,0.38188,2618.7,2618.6,0.38189]
[1729181738440,0.3819,2618.6,2618.5,0.79561]
[1729181739144,0.38189,2618.7,2618.6,0.38189]
[1729181739445,4.39991302,2619.0,2618.5,0.4137]
[1729181739647,0.3819,2618.6,2618.5,0.4137]
[1729181740445,0.38194,2618.3,2618.2,0.4185]
[1729181740745,0.38197,2618.1,2618.0,1.18108]
[1729181741049,0.38197,2618.1,2618.0,1.60398]
[1729181741441,0.8194,2618.5,2618.1,0.38196]
[1729181741641,0.38197,2618.2,2618.1,0.38197]
[1729181742143,0.8194,2618.5,2618.0,1.222]
[1729181742454,0.38196,2618.2,2618.1,0.38197]
[1729181742944,0.38196,2618.2,2618.1,0.38196]
[1729181743138,0.38197,2618.1,2618.0,1.60398]
[1729181743345,0.38197,2618.2,2618.1,0.38196]
[1729181743537,0.38193,2618.4,2618.3,0.38193]
[1729181743742,0.38192,2618.5,2618.4,0.38191]
[1729181744166,0.23816812,2618.8,2618.2,3.2078]
[1729181744451,3.2078,2618.9,2618.5,3.2078]
[1729181744637,3.2078,2618.9,2618.6,1.61379]
[1729181744638,0.38189,2618.7,2618.6,1.61379]
[1729181744837,3.2078,2618.9,2618.6,1.2319]
[1729181745044,0.38188,2618.7,2618.6,1.61379]
[1729181745438,0.38187,2618.8,2618.7,0.38187]
[1729181745649,1.18285548,2619.1,2618.6,1.2319]
[1729181745650,0.22827548,2619.1,2618.6,1.2319]
[1729181745852,0.38185,2619.0,2618.9,0.38185]
[1729181746343,0.38184,2619.0,2618.9,0.38184]
[1729181747142,3.2078,2619.6,2618.7,0.95471]
[1729181747350,0.38177,2619.5,2619.4,0.38178]
[1729181747649,3.2078,2619.6,2619.0,0.95461]
[1729181747844,3.2078,2619.6,2619.1,1.34366]
[1729181748147,0.38175,2619.6,2619.5,0.38176]
[1729181748337,0.38176,2619.6,2619.5,0.38176]
[1729181748535,0.23397209,2619.7,2619.3,0.4056]
[1729181748741,0.95432,2619.8,2619.3,0.4056]
[1729181748944,0.95432,2619.8,2619.3,0.78738]
[1729181748945,0.38178,2619.4,2619.3,0.78738]
[1729181749347,0.38178,2619.4,2619.3,0.4056]
[1729181749647,0.3818,2619.3,2619.2,0.3818]
[1729181749849,0.95436,2619.7,2619.1,0.3891]
[1729181750143,0.38181,2619.3,2619.2,0.3818]
[1729181750337,0.38175,2619.6,2619.3,0.38179]
[1729181750534,0.95443,2619.5,2619.1,0.3891]
[1729181750741,0.38181,2619.2,2619.1,0.77092]
[1729181751349,5.8874424,2619.9,2619.1,0.3891]
[1729181751551,0.38181,2619.3,2619.2,0.38181]
[1729181752450,0.9544,2619.6,2619.1,0.3891]
[1729181752650,0.38181,2619.2,2619.1,0.3891]
[1729181753037,0.38182,2619.1,2619.0,0.4056]
[1729181753443,0.38182,2619.1,2619.0,0.78744]
[1729181753645,0.38182,2619.1,2619.0,0.4056]
[1729181754050,0.38182,2619.1,2619.0,0.78744]
[1729181756658,0.38182,2619.2,2619.1,0.38181]
[1729181757553,0.38181,2619.3,2619.2,0.38179]
[1729181757750,0.38179,2619.4,2619.3,0.38178]
[1729181757943,0.38182,2619.2,2619.1,0.38181]
[1729181758651,0.38181,2619.3,2619.2,0.38179]
[1729181760056,0.38179,2619.4,2619.3,0.38178]
[1729181761158,0.38178,2619.5,2619.4,0.38177]
[1729181761456,0.95437,2619.7,2619.1,0.95457]
[1729181761457,0.38175,2619.7,2619.2,3.2078]
[1729181761647,0.38175,2619.7,2619.6,0.38175]
[1729181762154,0.6175557,2619.8,2619.7,0.38174]
[1729181762357,0.38173,2619.8,2619.7,0.38174]
[1729181762665,0.38173,2619.8,2619.7,0.38173]
[1729181762844,0.38173,2619.8,2619.7,0.80373]
[1729181763252,0.38173,2619.8,2619.7,0.422]
[1729181763449,0.38177,2619.5,2619.4,0.38178]
[1729181763954,0.38178,2619.4,2619.3,0.422]
[1729181764150,0.38181,2619.2,2619.1,0.4122]
[1729181764345,0.38182,2619.1,2619.0,4.58570605]
[1729181764554,1.38062,2619.5,2619.1,0.38182]
[1729181764555,0.38182,2619.2,2619.1,0.38182]
[1729181765657,0.38182,2619.1,2619.0,4.58570605]
[1729181765852,0.38182,2619.1,2619.0,3.58963]
[1729181766058,0.38182,2619.1,2619.0,3.2078]
[1729181766358,0.38182,2619.1,2619.0,4.20387605]
[1729181767361,0.95451,2619.3,2619.0,0.99607605]
[1729181767662,0.38187,2618.8,2618.7,1.37795605]
[1729181767960,0.38187,2618.8,2618.7,3.2078]
[1729181768553,0.38188,2618.8,2618.7,0.38188]
[1729181768957,0.38188,2618.8,2618.6,1.42367605]
[1729181768958,0.38188,2618.7,2618.6,1.80556605]
[1729181769363,0.38188,2618.7,2618.6,1.42367605]
[1729181769563,0.38191,2618.5,2618.4,0.99607605]
[1729181769763,0.38193,2618.4,2618.3,1.80470605]
[1729181770264,0.38193,2618.4,2618.3,0.4267]
[1729181770959,44.0078,2618.8,2618.1,4.20387605]
[1729181771165,44.0078,2618.8,2618.0,1.88611867]
[1729181771166,0.4115,2618.7,2618.0,1.81387605]
[1729181771364,0.38197,2618.1,2618.0,0.8178]
[1729181771560,0.38197,2618.1,2618.0,1.19979]
[1729181772559,0.38197,2618.1,2618.0,0.8178]
[1729181772864,0.38199,2618.0,2617.9,0.4068]
[1729181773259,0.38201,2617.8,2617.7,0.4214]
[1729181773956,0.38203,2617.7,2617.6,0.3938]
[1729181774156,0.95501,2617.9,2617.4,0.38206]
[1729181774157,0.38206,2617.5,2617.4,0.38206]
[1729181774563,0.38207,2617.4,2617.3,1.79955605]
[1729181774752,0.95501,2617.9,2617.3,0.4214]
[1729181774957,0.38206,2617.5,2617.4,0.38206]
[1729181775166,0.6394498,2618.0,2617.4,3.2078]
[1729181775359,0.38207,2617.4,2617.3,0.80348]
[1729181775952,0.38206,2617.5,2617.4,0.38206]
[1729181776163,0.95501,2617.9,2617.3,0.4214]
[1729181776467,0.38205,2617.6,2617.5,0.38205]
[1729181776661,0.38204,2617.7,2617.6,0.38204]
[1729181776867,0.6394498,2618.0,2617.5,0.38205]
[1729181777164,0.6394498,2618.0,2617.4,0.38206]
[1729181777165,0.38204,2617.6,2617.4,0.38206]
[1729181777357,0.95503,2617.9,2617.4,0.38206]
[1729181777553,0.38207,2617.5,2617.4,0.38207]
[1729181777754,0.95503,2617.9,2617.4,0.38206]
[1729181777952,1.5944298,2618.0,2617.3,0.4214]
[1729181778163,0.38205,2617.6,2617.5,0.38206]
[1729181778467,1.33701,2617.9,2617.4,0.38206]
[1729181778664,0.3821,2617.2,2617.1,3.2078]
[1729181778869,0.3821,2617.2,2617.1,3.58992]
[1729181779073,0.3821,2617.2,2617.1,3.2078]